bitfinex-derivatives/quotes_BNBF0:USTF0_20250524
["timestamp","ask_amount","ask_price","bid_price","bid_amount"]
[1748055632603,1.57771821,663.81,663.26,1.272]
[1748055632805,1.57771821,663.8,663.26,1.272]
[1748055633003,1.57771821,663.79,663.26,1.272]
[1748055633203,1.57771821,663.78,663.26,1.272]
[1748055633406,1.57771821,663.77,663.26,1.272]
[1748055633705,1.57771821,663.76,663.26,1.272]
[1748055633907,1.57771821,663.75,663.26,1.272]
[1748055634104,1.57771821,663.74,663.26,1.272]
[1748055634308,1.0888248,663.73,663.26,1.272]
[1748055634509,1.0888248,663.72,663.26,1.272]
[1748055634711,1.0888248,663.71,663.26,1.272]
[1748055634909,1.0888248,663.7,663.26,1.272]
[1748055635106,1.50130193,663.85,663.26,1.272]
[1748055635306,1.57762769,663.84,663.26,1.272]
[1748055635503,1.57762769,663.83,663.26,1.272]
[1748055635706,1.57762769,663.82,663.26,1.272]
[1748055635904,1.57762769,663.81,663.26,1.272]
[1748055636106,1.57762769,663.8,663.26,1.272]
[1748055636305,1.57762769,663.79,663.26,1.272]
[1748055636507,1.0888416,663.78,663.26,1.272]
[1748055636705,1.57760527,663.77,663.26,1.272]
[1748055636906,1.57760527,663.76,663.26,1.272]
[1748055637104,1.57760527,663.75,663.26,1.272]
[1748055637308,1.57760527,663.74,663.26,1.272]
[1748055637513,1.0888416,663.73,663.26,1.272]
[1748055637812,1.0888416,663.72,663.26,1.272]
[1748055638009,1.0888416,663.71,663.26,1.272]
[1748055638206,1.0888416,663.7,663.26,1.272]
[1748055638405,0.30126833,663.86,663.26,1.272]
[1748055638709,1.577368,663.85,663.26,1.272]
[1748055638911,1.577368,663.84,663.26,1.272]
[1748055639208,1.577368,663.83,663.26,1.272]
[1748055639409,1.577368,663.82,663.26,1.272]
[1748055639608,1.577368,663.81,663.26,1.272]
[1748055639810,1.577368,663.8,663.26,1.272]
[1748055640007,1.577368,663.79,663.26,1.272]
[1748055640210,1.577368,663.78,663.26,1.272]
[1748055640411,1.577368,663.77,663.26,1.272]
[1748055640610,1.577368,663.76,663.26,1.272]
[1748055640810,1.08866207,663.75,663.26,1.272]
[1748055641008,1.08866207,663.74,663.26,1.272]
[1748055641311,1.08866207,663.73,663.26,1.272]
[1748055641507,1.08866207,663.72,663.1,1.03670098]
[1748055641706,0.30126833,663.86,663.1,1.03670098]
[1748055641908,1.57710764,663.85,663.1,1.03670098]
[1748055642210,1.57710764,663.84,663.1,1.03670098]
[1748055642406,0.30126833,663.86,663.1,1.03670098]
[1748055642407,1.57710764,663.83,663.1,1.03670098]
[1748055642706,1.57710764,663.82,663.1,1.03670098]
[1748055642910,1.57710764,663.81,663.15,1.03670098]
[1748055643110,1.57710764,663.8,663.15,1.03670098]
[1748055643311,1.08849618,663.79,663.15,1.03670098]
[1748055643510,1.08849618,663.78,663.15,1.03670098]
[1748055643714,1.08849618,663.77,663.15,1.03670098]
[1748055643914,1.08849618,663.76,663.15,1.03670098]
[1748055644114,0.30126833,663.86,663.15,1.03670098]
[1748055644416,1.57695637,663.85,663.15,1.03670098]
[1748055644610,1.57695555,663.84,663.16,1.055]
[1748055644914,1.57695555,663.83,663.16,1.055]
[1748055645209,1.57695555,663.82,663.16,1.055]
[1748055645410,1.57695555,663.81,663.16,1.055]
[1748055645611,1.57695555,663.8,663.16,1.055]
[1748055645814,1.08836945,663.79,663.16,1.055]
[1748055646014,1.08836945,663.78,663.16,1.055]
[1748055646217,1.08836945,663.77,663.16,2.09170098]
[1748055646417,1.08835191,663.76,663.16,2.09170098]
[1748055646618,0.30126833,663.86,663.16,2.09170098]
[1748055646817,1.57693356,663.85,663.16,2.09170098]
[1748055647016,1.57693356,663.84,663.16,2.09170098]
[1748055647216,1.57693356,663.83,663.16,2.09170098]
[1748055647417,1.57693356,663.82,663.16,2.09170098]
[1748055647714,1.57693356,663.81,663.16,2.09170098]
[1748055647917,1.57693356,663.8,663.16,2.09170098]
[1748055648120,1.5769483,663.79,663.16,2.09170098]
[1748055648324,1.08838669,663.78,663.16,2.09170098]
[1748055648521,1.08838669,663.77,663.16,2.09170098]
[1748055648723,0.30126833,663.86,663.16,2.09170098]
[1748055648924,1.57696541,663.85,663.16,2.09170098]
[1748055649124,1.57696541,663.84,663.16,2.09170098]
[1748055649322,1.57696541,663.83,663.16,2.09170098]
[1748055649523,1.57696541,663.82,663.16,2.09170098]
[1748055649725,1.08837779,663.81,663.16,2.09170098]
[1748055649930,1.08837779,663.8,663.16,2.09170098]
[1748055650125,1.08844719,663.79,663.16,2.09170098]
[1748055650324,0.30126833,663.86,663.16,2.09170098]
[1748055650525,1.57718173,663.85,663.16,2.09170098]
[1748055650726,1.57718173,663.84,663.16,2.09170098]
[1748055651027,1.57718173,663.83,663.16,2.09170098]
[1748055651226,1.57721117,663.82,663.16,2.09170098]
[1748055651420,1.08850237,663.81,663.16,2.09170098]
[1748055651623,1.08850237,663.8,663.16,2.09170098]
[1748055651824,1.08850237,663.79,663.16,2.09170098]
[1748055652026,1.08850237,663.78,663.16,2.09170098]
[1748055652222,0.30126833,663.86,663.16,2.09170098]
[1748055652529,1.57563063,663.85,663.2,1.03670098]
[1748055652723,1.57563063,663.84,663.2,1.03670098]
[1748055652925,1.57563063,663.83,663.2,1.03670098]
[1748055653125,1.57563063,663.82,663.2,1.03670098]
[1748055653326,1.57563063,663.81,663.2,1.03670098]
[1748055653527,1.08786864,663.8,663.2,1.03670098]
[1748055653727,1.0879589,663.79,663.2,1.03670098]
[1748055653930,1.0879589,663.78,663.2,1.03670098]
[1748055654128,1.0879589,663.77,663.2,1.03670098]
[1748055654328,0.30126833,663.86,663.2,1.03670098]
[1748055654529,1.57586962,663.85,663.2,1.03670098]
[1748055654727,1.57586962,663.84,663.2,1.03670098]
[1748055654926,1.57586962,663.83,663.2,1.03670098]
[1748055655129,0.30126833,663.86,663.2,1.03670098]
[1748055655130,1.57586962,663.82,663.2,1.03670098]
[1748055655325,1.57586962,663.81,663.2,1.03670098]
[1748055655532,1.57590709,663.8,663.2,1.03670098]
[1748055655728,1.08803242,663.79,663.2,1.03670098]
[1748055655931,1.08803242,663.78,663.2,1.03670098]
[1748055656129,1.08803242,663.77,663.22,1.03670098]
[1748055656326,1.08803242,663.76,663.22,1.03670098]
[1748055656532,0.30126833,663.86,663.22,1.03670098]
[1748055656733,1.57614117,663.85,663.22,1.03670098]
[1748055656932,1.57614117,663.84,663.22,1.03670098]
[1748055657129,1.57614117,663.83,663.22,1.03670098]
[1748055657329,1.57614117,663.82,663.22,1.03670098]
[1748055657529,1.57614117,663.81,663.22,1.03670098]
[1748055657729,1.57614117,663.8,663.22,1.03670098]
[1748055657931,1.08822999,663.79,663.22,1.03670098]
[1748055658126,1.08822999,663.78,663.22,1.03670098]
[1748055658328,1.08822999,663.77,663.22,1.03670098]
[1748055658527,1.08822999,663.76,663.22,1.03670098]
[1748055658828,0.30126833,663.86,663.22,1.03670098]
[1748055659030,1.57645779,663.85,663.22,1.03670098]
[1748055659230,1.57656565,663.84,663.23,1.03670098]
[1748055659431,1.57656565,663.83,663.23,1.03670098]
[1748055659632,1.57656565,663.82,663.23,1.03670098]
[1748055659932,1.57656565,663.81,663.23,1.03670098]
[1748055660231,1.57656565,663.8,663.23,1.03670098]
[1748055660432,1.57656565,663.79,663.23,1.03670098]
[1748055660628,1.08853285,663.78,663.23,1.03670098]
[1748055660831,1.08853768,663.77,663.23,1.03670098]
[1748055661028,0.30126833,663.86,663.23,1.03670098]
[1748055661232,1.57657036,663.85,663.23,1.03670098]
[1748055661433,1.57657036,663.84,663.23,1.03670098]
[1748055661629,1.57657036,663.83,663.23,1.03670098]
[1748055661827,1.57657036,663.82,663.23,1.03670098]
[1748055662030,1.57657036,663.81,663.25,1.03670098]
[1748055662232,1.57665074,663.8,663.25,1.03670098]
[1748055662527,1.08853768,663.79,663.25,1.03670098]
[1748055662725,1.08853768,663.78,663.25,1.03670098]
[1748055662933,1.08853768,663.77,663.25,1.03670098]
[1748055663130,1.08853768,663.76,663.25,1.03670098]
[1748055663330,0.30126833,663.86,663.25,1.03670098]
[1748055663528,1.57703722,663.85,663.25,1.03670098]
[1748055663735,1.57706262,663.84,663.25,1.03670098]
[1748055663932,1.57706262,663.83,663.25,1.03670098]
[1748055664133,1.57707401,663.82,663.25,1.03670098]
[1748055664334,1.57707401,663.81,663.25,1.03670098]
[1748055664528,1.08889538,663.8,663.25,1.03670098]
[1748055664734,1.08889538,663.79,663.25,1.03670098]
[1748055665032,0.30126833,663.86,663.25,1.03670098]
[1748055665235,1.57723972,663.85,663.28,1.03670098]
[1748055665435,1.57723972,663.84,663.28,1.03670098]
[1748055665734,1.57723972,663.83,663.28,1.03670098]
[1748055665936,1.08897692,663.82,663.28,1.03670098]
[1748055666136,1.08897692,663.81,663.28,1.03670098]
[1748055666436,1.08897692,663.8,663.28,1.03670098]
[1748055666638,0.30126833,663.86,663.28,1.03670098]
[1748055666836,1.57758534,663.85,663.28,1.03670098]
[1748055667037,1.57758534,663.84,663.28,1.03670098]
[1748055667237,1.08923723,663.83,663.28,1.03670098]
[1748055667438,1.08923723,663.82,663.28,1.03670098]
[1748055667736,1.08923723,663.81,663.28,1.03670098]
[1748055667937,1.08923723,663.8,663.28,1.03670098]
[1748055668131,0.30126833,663.86,663.28,1.03670098]
[1748055668330,1.57773478,663.85,663.28,1.03670098]
[1748055668530,1.57773478,663.84,663.28,1.03670098]
[1748055668734,1.57778807,663.83,663.28,1.03670098]
[1748055669037,1.08934076,663.82,663.31,1.03670098]
[1748055669231,1.08934076,663.81,663.31,1.03670098]
[1748055669431,1.08934076,663.8,663.31,1.03670098]
[1748055669636,1.08934076,663.79,663.31,1.03670098]
[1748055669833,0.30126833,663.86,663.31,1.03670098]
[1748055670035,1.57803159,663.85,663.31,1.03670098]
[1748055670236,1.57803159,663.84,663.31,1.03670098]
[1748055670538,1.08954618,663.83,663.31,1.03670098]
[1748055670739,1.08954618,663.82,663.31,1.03670098]
[1748055670936,1.08954618,663.81,663.31,1.03670098]
[1748055671140,1.08954618,663.8,663.31,1.03670098]
[1748055671440,0.30126833,663.86,663.31,1.03670098]
[1748055671639,1.57827965,663.85,663.31,1.03670098]
[1748055671939,1.57827965,663.84,663.31,1.03670098]
[1748055672239,1.57827965,663.83,663.29,1.03670098]
[1748055672439,1.08975719,663.82,663.29,1.03670098]
[1748055672640,1.08975719,663.81,663.29,1.03670098]
[1748055672839,0.30126833,663.86,663.29,1.03670098]
[1748055672840,1.08975719,663.8,663.29,1.03670098]
[1748055673041,1.08975719,663.79,663.29,1.03670098]
[1748055673234,0.30126833,663.86,663.29,1.03670098]
[1748055673438,1.57820533,663.85,663.29,1.03670098]
[1748055673637,1.57820533,663.84,663.29,1.03670098]
[1748055673837,1.57820533,663.83,663.29,1.03670098]
[1748055674036,1.08970543,663.82,663.29,1.03670098]
[1748055674336,1.08970543,663.81,663.29,1.03670098]
[1748055674537,1.08970543,663.8,663.29,1.03670098]
[1748055674738,0.30126833,663.86,663.29,1.03670098]
[1748055674942,1.57814325,663.85,663.29,1.03670098]
[1748055675137,1.57814325,663.84,663.29,1.03670098]
[1748055675335,1.08967249,663.83,663.29,1.03670098]
[1748055675538,0.30126833,663.86,663.29,1.03670098]
[1748055675539,1.08967249,663.82,663.29,1.03670098]
[1748055675737,1.08967249,663.81,663.29,1.03670098]
[1748055675939,1.08967249,663.8,663.29,1.03670098]
[1748055676142,0.30126833,663.86,663.29,1.03670098]
[1748055676342,1.57809078,663.85,663.29,1.03670098]
[1748055676537,1.57809078,663.84,663.29,1.03670098]
[1748055676755,1.08963626,663.83,663.29,1.03670098]
[1748055676942,1.08963626,663.82,663.29,1.03670098]
[1748055677236,1.08963626,663.81,663.29,1.03670098]
[1748055677441,1.08963626,663.8,663.29,1.03670098]
[1748055677641,0.30126833,663.86,663.29,1.03670098]
[1748055677856,1.57796909,663.85,663.29,1.03670098]
[1748055678041,1.57796909,663.84,663.28,1.03670098]
[1748055678242,1.08955219,663.83,663.28,1.03670098]
[1748055678438,1.08955219,663.82,663.28,1.03670098]
[1748055678642,1.08950932,663.81,663.28,1.03670098]
[1748055678843,0.30126833,663.86,663.28,1.03670098]
[1748055679044,1.57789416,663.85,663.28,1.03670098]
[1748055679243,1.08950108,663.84,663.28,1.03670098]
[1748055679439,1.08950108,663.83,663.28,1.03670098]
[1748055679645,1.08950108,663.82,663.28,1.03670098]
[1748055679837,1.08950108,663.81,663.28,1.03670098]
[1748055680042,0.30126833,663.86,663.28,1.03670098]
[1748055680239,1.57781267,663.85,663.28,1.03670098]
[1748055680545,1.08944484,663.84,663.28,1.03670098]
[1748055680747,1.08944484,663.83,663.28,1.03670098]
[1748055680943,1.08944484,663.82,663.28,1.03670098]
[1748055681147,1.08944484,663.81,663.28,1.03670098]
[1748055681348,0.30126833,663.86,663.29,1.03670098]
[1748055681549,1.5777094,663.85,663.29,1.03670098]
[1748055681849,1.08937324,663.84,663.29,1.03670098]
[1748055682048,1.08937324,663.83,663.29,1.03670098]
[1748055682248,1.08932616,663.82,663.29,1.03670098]
[1748055682449,1.08932616,663.81,663.29,1.03670098]
[1748055682749,0.30126833,663.86,663.29,1.03670098]
[1748055682950,1.57761493,663.85,663.29,1.03670098]
[1748055683147,1.08930791,663.84,663.29,1.03670098]
[1748055683347,1.08930791,663.83,663.29,1.03670098]
[1748055683644,1.08930791,663.82,663.28,1.03670098]
[1748055683845,1.08930791,663.81,663.28,1.03670098]
[1748055684046,0.30126833,663.86,663.28,1.03670098]
[1748055684244,1.57753536,663.85,663.29,1.259]
[1748055684449,1.08924317,663.84,663.29,1.259]
[1748055684745,1.08924317,663.83,663.29,1.259]
[1748055684946,1.08924317,663.82,663.29,1.259]
[1748055685144,1.08924317,663.81,663.29,1.259]
[1748055685348,0.30126833,663.86,663.29,1.259]
[1748055685548,1.5775305,663.85,663.29,1.259]
[1748055685749,1.08924973,663.84,663.29,1.259]
[1748055685948,1.08924973,663.83,663.29,1.259]
[1748055686152,1.08924973,663.82,663.29,1.259]
[1748055686451,1.08924973,663.81,663.29,1.259]
[1748055686651,0.30126833,663.86,663.29,1.259]
[1748055686852,1.57753603,663.85,663.29,1.259]
[1748055687055,1.08925355,663.84,663.29,1.259]
[1748055687253,1.08925355,663.83,663.29,1.259]
[1748055687452,1.08925355,663.82,663.29,1.259]
[1748055687753,1.08925355,663.81,663.29,1.259]
[1748055687953,0.30126833,663.86,663.29,1.259]
[1748055688151,1.57757583,663.85,663.29,1.259]
[1748055688350,1.08928103,663.84,663.29,1.259]
[1748055688549,1.08928103,663.83,663.29,1.259]
[1748055688748,1.08928103,663.82,663.29,1.259]
[1748055688950,1.08928103,663.81,663.29,1.259]
[1748055689149,0.30126833,663.86,663.29,1.259]
[1748055689354,1.57765891,663.85,663.29,1.259]
[1748055689653,1.08937401,663.84,663.29,1.259]
[1748055689847,1.08937401,663.83,663.29,1.259]
[1748055690053,1.08937401,663.82,663.29,2.29570098]
[1748055690251,1.08937401,663.81,663.29,2.29570098]
[1748055690450,0.30126833,663.86,663.29,2.29570098]
[1748055690650,1.57767251,663.85,663.29,2.29570098]
[1748055690849,1.08937348,663.84,663.29,2.29570098]
[1748055691056,1.08937348,663.83,663.29,2.29570098]
[1748055691249,1.08937348,663.82,663.29,2.29570098]
[1748055691450,1.08937348,663.81,663.29,2.29570098]
[1748055691651,0.30126833,663.86,663.29,2.29570098]
[1748055691850,1.57779039,663.85,663.29,2.29570098]
[1748055692052,1.0894748,663.84,663.29,2.29570098]
[1748055692249,1.0894748,663.83,663.29,2.29570098]
[1748055692454,1.0894748,663.82,663.3,1.03670098]
[1748055692650,1.0894748,663.81,663.3,1.03670098]
[1748055692853,0.30126833,663.86,663.3,1.03670098]
[1748055693054,1.57785615,663.85,663.3,1.03670098]
[1748055693355,1.57788032,663.84,663.3,1.03670098]
[1748055693555,1.08952003,663.83,663.3,1.03670098]
[1748055693751,1.08952003,663.82,663.3,1.03670098]
[1748055693955,1.08952003,663.81,663.3,1.03670098]
[1748055694255,1.08952003,663.8,663.3,1.03670098]
[1748055694455,0.30126833,663.86,663.3,1.03670098]
[1748055694655,1.57790287,663.85,663.3,1.03670098]
[1748055694858,1.57790287,663.84,663.3,1.03670098]
[1748055695058,1.08951262,663.83,663.3,1.03670098]
[1748055695251,1.08951262,663.82,663.33,1.03670098]
[1748055695452,1.08951262,663.81,663.33,1.03670098]
[1748055695655,1.08951262,663.8,663.33,1.03670098]
[1748055695855,0.30126833,663.86,663.33,1.03670098]
[1748055696054,1.5780531,663.85,663.33,1.03670098]
[1748055696256,1.5780531,663.84,663.33,1.03670098]
[1748055696456,1.0895809,663.83,663.33,1.03670098]
[1748055696657,1.0895809,663.82,663.33,1.03670098]
[1748055696955,1.0896614,663.81,663.33,1.03670098]
[1748055697158,1.0896614,663.8,663.33,1.03670098]
[1748055697352,0.30126833,663.86,663.33,1.03670098]
[1748055697558,1.57830906,663.85,663.33,1.03670098]
[1748055697754,1.08975766,663.84,663.33,1.03670098]
[1748055697957,1.50130193,663.95,663.33,1.03670098]
[1748055698158,1.57817641,663.94,663.33,1.03670098]
[1748055698353,1.57817641,663.93,663.29,2.29570098]
[1748055698558,1.57817641,663.92,663.29,2.29570098]
[1748055698758,1.50130193,664.21,663.29,2.29570098]
[1748055698964,1.57823019,664.2,663.29,2.29570098]
[1748055699159,1.57823019,664.19,663.29,2.29570098]
[1748055699359,1.57823019,664.18,663.29,2.29570098]
[1748055699566,1.57823019,664.17,663.29,2.29570098]
[1748055699765,1.57823019,664.16,663.29,2.29570098]
[1748055699961,1.0897083,664.15,663.29,2.29570098]
[1748055700161,1.0897083,664.14,663.29,2.29570098]
[1748055700365,1.0897083,664.13,663.29,2.29570098]
[1748055700563,1.50130193,664.21,663.29,2.29570098]
[1748055700767,1.57477338,664.2,663.29,2.29570098]
[1748055700962,1.57477338,664.19,663.29,2.29570098]
[1748055701166,1.57477338,664.18,663.29,2.29570098]
[1748055701362,1.08823198,664.17,663.29,2.29570098]
[1748055701569,1.50130193,664.21,663.29,2.29570098]
[1748055701767,1.08631614,664.2,663.62,1.03670098]
[1748055701964,1.08631614,664.19,663.62,1.03670098]
[1748055702166,1.08631614,664.18,663.62,1.03670098]
[1748055702368,1.08635241,664.17,663.62,1.03670098]
[1748055702570,0.26208273,664.53,663.62,1.03670098]
[1748055702864,1.87258518,664.52,663.62,1.03670098]
[1748055703068,1.8725897,664.51,663.63,0.9602823]
[1748055703265,1.57161606,664.5,663.63,0.9602823]
[1748055703465,1.87259876,664.49,663.63,0.9602823]
[1748055703663,1.87260329,664.48,663.63,0.9602823]
[1748055703967,1.87260782,664.47,663.63,0.9602823]
[1748055704162,1.57119038,664.46,663.63,0.9602823]
[1748055704365,1.57119038,664.45,663.63,0.9602823]
[1748055704564,1.57119038,664.44,663.63,0.9602823]
[1748055704862,1.57119038,664.43,663.64,0.9602823]
[1748055705060,1.57119038,664.42,663.64,0.9602823]
[1748055705267,1.57119038,664.41,663.64,0.9602823]
[1748055705568,1.57119038,664.4,663.64,0.9602823]
[1748055705766,1.57119038,664.39,663.64,0.9602823]
[1748055706068,1.57067584,664.38,663.65,0.9602823]
[1748055706271,1.57067584,664.37,663.65,0.9602823]
[1748055706468,1.57067584,664.36,663.65,0.9602823]
[1748055706767,1.57067584,664.35,663.65,0.9602823]
[1748055706963,1.57067584,664.34,663.65,0.9602823]
[1748055707163,1.57067584,664.33,663.65,0.9602823]
[1748055707367,1.57067584,664.32,663.65,0.9602823]
[1748055707666,1.57042217,664.31,663.65,0.9602823]
[1748055707865,1.57042217,664.3,663.65,0.9602823]
[1748055708165,1.57042217,664.29,663.65,0.9602823]
[1748055708365,1.57042217,664.28,663.66,0.9602823]
[1748055708662,1.08537318,664.27,663.66,0.9602823]
[1748055708862,1.08537318,664.26,663.66,0.9602823]
[1748055709066,1.08537318,664.25,663.66,0.9602823]
[1748055709266,0.30099176,664.47,663.66,0.9602823]
[1748055709467,0.48494505,664.46,663.66,0.9602823]
[1748055709666,1.56879266,664.45,663.67,0.9602823]
[1748055709870,1.56879266,664.44,663.67,0.9602823]
[1748055710069,1.56879266,664.43,663.67,0.9602823]
[1748055710368,1.56879266,664.42,663.67,0.9602823]
[1748055710566,1.56879266,664.41,663.67,0.9602823]
[1748055710770,1.56879266,664.4,663.67,0.9602823]
[1748055710970,1.56879266,664.39,663.67,0.9602823]
[1748055711273,1.56879266,664.38,663.68,0.9602823]
[1748055711571,1.56829052,664.37,663.68,0.9602823]
[1748055711767,1.56829052,664.36,663.68,0.9602823]
[1748055712070,1.56829052,664.35,663.68,0.9602823]
[1748055712268,1.56829052,664.34,663.68,0.9602823]
[1748055712468,1.56829052,664.33,663.68,0.9602823]
[1748055712673,1.56829052,664.32,663.68,0.9602823]
[1748055712870,1.56829052,664.31,663.68,0.9602823]
[1748055713068,1.56829052,664.3,663.69,0.9602823]
[1748055713271,1.08353014,664.29,663.69,0.9602823]
[1748055713472,1.08353014,664.28,663.69,0.9602823]
[1748055713672,1.08353014,664.27,663.69,0.9602823]
[1748055713872,1.08353014,664.26,663.69,0.9602823]
[1748055714169,0.30099176,664.47,663.69,0.9602823]
[1748055714372,1.56759914,664.46,663.69,0.9602823]
[1748055714573,1.56759914,664.45,663.69,0.9602823]
[1748055714870,1.56759914,664.44,663.69,0.9602823]
[1748055715170,1.56759914,664.43,663.7,0.9602823]
[1748055715369,1.56759914,664.42,663.7,0.9602823]
[1748055715570,1.56759914,664.41,663.7,0.9602823]
[1748055715769,1.56759914,664.4,663.7,0.9602823]
[1748055715975,1.56759914,664.39,663.7,0.9602823]
[1748055716175,1.56759914,664.38,663.7,0.9602823]
[1748055716478,1.56759914,664.37,663.71,0.9602823]
[1748055716670,1.56759914,664.36,663.71,0.9602823]
[1748055716874,1.56697344,664.35,663.71,0.9602823]
[1748055717070,1.56697344,664.34,663.71,0.9602823]
[1748055717272,1.5669616,664.33,663.71,0.9602823]
[1748055717569,1.5669616,664.32,663.71,0.9602823]
[1748055717770,1.08276224,664.31,663.71,0.9602823]
[1748055717975,1.08276224,664.3,663.71,0.9602823]
[1748055718178,1.08276224,664.29,663.72,0.9602823]
[1748055718371,1.08276224,664.28,663.72,0.9602823]
[1748055718571,0.30099176,664.47,663.72,0.9602823]
[1748055718874,1.56676677,664.46,663.72,0.9602823]
[1748055719175,1.56676677,664.45,663.72,0.9602823]
[1748055719372,1.56676677,664.44,663.72,0.9602823]
[1748055719575,1.56676677,664.43,663.73,0.9602823]
[1748055719776,1.56676677,664.42,663.73,0.9602823]
[1748055719973,1.56676677,664.41,663.73,0.9602823]
[1748055720178,1.56676677,664.4,663.73,0.9602823]
[1748055720378,1.56675038,664.39,663.73,0.9602823]
[1748055720578,1.56675038,664.38,663.73,0.9602823]
[1748055720780,1.56675038,664.37,663.73,0.9602823]
[1748055721078,1.56675038,664.36,663.73,0.9602823]
[1748055721377,1.56675038,664.35,663.73,0.9602823]
[1748055721579,1.5667407,664.34,663.73,0.9602823]
[1748055721778,1.5667407,664.34,663.45,1.38228811]
[1748055721779,1.5667407,664.33,663.74,0.9602823]
[1748055721978,1.08263235,664.32,663.74,0.9602823]
[1748055722171,1.08263235,664.31,663.74,0.9602823]
[1748055722374,1.08263235,664.3,663.74,0.9602823]
[1748055722573,1.08263235,664.29,663.74,0.9602823]
[1748055722774,1.08263235,664.28,663.74,0.9602823]
[1748055722978,0.30099176,664.47,663.74,0.9602823]
[1748055723275,1.56665384,664.46,663.75,0.9602823]
[1748055723479,1.56657149,664.45,663.75,0.9602823]
[1748055723683,1.56657149,664.44,663.75,0.9602823]
[1748055723876,1.56657149,664.43,663.75,0.9602823]
[1748055724074,1.56657149,664.42,663.75,0.9602823]
[1748055724279,1.56657149,664.41,663.75,0.9602823]
[1748055724476,1.56657149,664.4,663.75,0.9602823]
[1748055724675,1.56657149,664.39,663.76,0.9602823]
[1748055724978,1.56657149,664.38,663.76,0.9602823]
[1748055725176,1.56657149,664.37,663.76,0.9602823]
[1748055725375,1.5665601,664.36,663.76,0.9602823]
[1748055725579,1.5665601,664.35,663.76,0.9602823]
[1748055725779,1.5665601,664.34,663.76,0.9602823]
[1748055725979,1.5665601,664.33,663.77,0.9602823]
[1748055726176,1.08251572,664.32,663.77,2.2382823]
[1748055726380,1.08251572,664.31,663.77,2.2382823]
[1748055726579,1.08251572,664.3,663.77,2.2382823]
[1748055726784,1.08251572,664.29,663.77,2.2382823]
[1748055726977,1.08251572,664.28,663.77,2.2382823]
[1748055727179,0.30099176,664.47,663.78,0.9602823]
[1748055727377,1.5664185,664.46,663.78,0.9602823]
[1748055727581,1.5664185,664.45,663.78,0.9602823]
[1748055727778,1.5664185,664.44,663.78,0.9602823]
[1748055727982,1.5664185,664.43,663.78,0.9602823]
[1748055728183,1.5664185,664.42,663.78,0.9602823]
[1748055728383,1.5664185,664.41,663.78,0.9602823]
[1748055728580,1.5664185,664.4,663.79,0.9602823]
[1748055728785,1.5664185,664.39,663.79,0.9602823]
[1748055728985,1.5664185,664.38,663.79,0.9602823]
[1748055729184,0.30099176,664.47,663.79,0.9602823]
[1748055729487,1.56607818,664.46,663.79,0.9602823]
[1748055729685,1.56607818,664.45,663.79,0.9602823]
[1748055729884,1.08220416,664.44,663.79,0.9602823]
[1748055730081,1.08220416,664.43,663.79,0.9602823]
[1748055730282,1.08220416,664.42,663.79,0.9602823]
[1748055730481,1.08220416,664.41,663.79,0.9602823]
[1748055730686,1.08220416,664.4,663.79,0.9602823]
[1748055730887,0.30099176,664.47,663.8,0.9602823]
[1748055731186,1.56560545,664.46,663.8,0.9602823]
[1748055731388,1.08191352,664.45,663.8,0.9602823]
[1748055731685,1.08191352,664.44,663.8,0.9602823]
[1748055731885,1.08191352,664.43,663.8,0.9602823]
[1748055732086,1.08191352,664.42,663.8,0.9602823]
[1748055732282,1.08191352,664.41,663.8,0.9602823]
[1748055732479,0.30099176,664.47,663.8,0.9602823]
[1748055732680,1.56533009,664.46,663.81,0.9602823]
[1748055732887,1.08173301,664.45,663.81,0.9602823]
[1748055733081,1.08173301,664.44,663.81,0.9602823]
[1748055733385,1.08173301,664.43,663.81,0.9602823]
[1748055733582,1.08173301,664.42,663.81,0.9602823]
[1748055733781,1.08173301,664.41,663.81,0.9602823]
[1748055733981,0.30099176,664.47,663.81,0.9602823]
[1748055734184,1.56522105,664.46,663.81,0.9602823]
[1748055734388,1.08165769,664.45,663.81,0.9602823]
[1748055734584,1.08165769,664.44,663.77,1.278]
[1748055734787,1.08165769,664.43,663.77,1.278]
[1748055734984,1.08165769,664.42,663.77,1.278]
[1748055735187,1.08165769,664.41,663.77,1.278]
[1748055735488,0.30099176,664.47,663.77,1.278]
[1748055735789,1.56507449,664.46,663.77,1.278]
[1748055736084,1.08155642,664.45,663.77,1.278]
[1748055736284,1.08155642,664.44,663.77,1.278]
[1748055736487,1.08155642,664.43,663.77,1.278]
[1748055736684,1.08155642,664.42,663.77,1.278]
[1748055736890,1.08155642,664.41,663.77,1.278]
[1748055737091,0.30099176,664.47,663.77,1.278]
[1748055737390,1.56504233,664.46,663.77,1.278]
[1748055737590,1.08153428,664.45,663.77,1.278]
[1748055737790,1.08153428,664.44,663.77,1.278]
[1748055737991,1.08153428,664.43,663.77,1.278]
[1748055738191,1.08153428,664.42,663.77,1.278]
[1748055738390,1.08153428,664.41,663.77,1.278]
[1748055738591,0.30099176,664.47,663.77,1.278]